fUST/lending_fUST_20250824
["ID","MTS","AMOUNT","RATE_DAILY","PERIOD"]
[381040157,1755968830064,-500.0,0.00024979,2]
[381040158,1755968830086,-354.47416737,0.00024979,2]
[381040159,1755968830105,-500.0,0.00024979,2]
[381040160,1755968830127,-500.0,0.00024979,2]
[381040161,1755968830147,-500.0,0.00024979,2]
[381040162,1755968830168,-500.0,0.00024979,2]
[381040163,1755968830189,-500.0,0.00024979,2]
[381040164,1755968830214,-327.02133645,0.00024979,2]
[381040165,1755968830234,-500.0,0.00024979,2]
[381040166,1755968830258,-500.0,0.00024979,2]
[381040167,1755968830280,-500.0,0.00024979,2]
[381040168,1755968830303,-500.0,0.00024979,2]
[381040169,1755968830325,-500.0,0.00024979,2]
[381040170,1755968830346,-500.0,0.00024979,2]
[381040171,1755968830368,-500.0,0.00024979,2]
[381040172,1755968830390,-500.0,0.00024979,2]
[381040173,1755968830412,-500.0,0.00024979,2]
[381040174,1755968830440,-500.0,0.00024979,2]
[381040175,1755968830464,-500.0,0.00024979,2]
[381040176,1755968830486,-500.0,0.00024979,2]
[381040177,1755968830506,-500.0,0.00024979,2]
[381040178,1755968830526,-585.44169417,0.0002498,2]
[381040179,1755968830547,-106447.810841,0.0002498,2]
[381040180,1755968830569,-2573.84314461,0.0002498,2]
[381040181,1755968830589,-150.0,0.00024989,2]
[381040182,1755968830609,-500.0,0.00024989,2]
[381040183,1755968830629,-579.62776714,0.00024989,2]
[381040184,1755968830649,-500.0,0.00024989,2]
[381040185,1755968830669,-500.0,0.00024989,2]
[381040186,1755968830689,-1891.66447851,0.00024989,2]
[381040187,1755968835151,172.62340555,0.0002489,2]
[381040188,1755968932236,280.0,0.00024658,2]
[381040189,1755968935675,354.37082791,0.000199,2]
[381040190,1755968935735,354.37082785,0.00021627,2]
[381040191,1755968935886,354.37082785,0.00023353,2]
[381040193,1755969022328,184.906809,0.00023984,2]
[381040231,1755969032511,-300.0,0.00024978,2]
[381040233,1755969032521,-300.0,0.00024978,2]
[381040235,1755969032530,-300.0,0.00024978,2]
[381040236,1755969032539,-300.0,0.00024978,2]
[381040238,1755969032549,-300.0,0.00024978,2]
[381040240,1755969032558,-1200.0,0.00024978,2]
[381040242,1755969032568,-500.0,0.00024979,2]
[381040245,1755969032578,-500.0,0.00024979,2]
[381040248,1755969032588,-500.0,0.00024979,2]
[381040250,1755969032598,-500.0,0.00024979,2]
[381040252,1755969032608,-500.0,0.00024979,2]
[381040254,1755969032617,-500.0,0.00024979,2]
[381040256,1755969032626,-500.0,0.00024979,2]
[381040258,1755969032635,-500.0,0.00024979,2]
[381040260,1755969032647,-500.0,0.00024979,2]
[381040262,1755969032656,-500.0,0.00024979,2]
[381040264,1755969032666,-500.0,0.00024979,2]
[381040266,1755969032675,-500.0,0.00024979,2]
[381040268,1755969032684,-500.0,0.00024979,2]
[381040270,1755969032693,-500.0,0.00024979,2]
[381040272,1755969032702,-500.0,0.00024979,2]
[381040274,1755969032711,-500.0,0.00024979,2]
[381040276,1755969032721,-500.0,0.00024979,2]
[381040278,1755969032730,-500.0,0.00024979,2]
[381040280,1755969032739,-500.0,0.00024979,2]
[381040281,1755969032748,-500.0,0.00024979,2]
[381040283,1755969032757,-500.0,0.00024979,2]
[381040285,1755969032766,-500.0,0.00024979,2]
[381040287,1755969032775,-500.0,0.00024979,2]
[381040289,1755969032784,-500.0,0.00024979,2]
[381040291,1755969032793,-362.7989083,0.00024979,2]
[381040293,1755969032802,-500.0,0.00024979,2]
[381040295,1755969032812,-500.0,0.00024979,2]
[381040297,1755969032822,-500.0,0.00024979,2]
[381040299,1755969032831,-500.0,0.00024979,2]
[381040301,1755969032841,-500.0,0.00024979,2]
[381040303,1755969032851,-500.0,0.00024979,2]
[381040304,1755969032860,-476.35435212,0.00024979,2]
[381040305,1755969032869,-500.0,0.00024979,2]
[381040306,1755969032877,-500.0,0.00024979,2]
[381040307,1755969032886,-500.0,0.00024979,2]
[381040308,1755969032895,-500.0,0.00024979,2]
[381040309,1755969032905,-500.0,0.00024979,2]
[381040310,1755969032914,-500.0,0.00024979,2]
[381040311,1755969032923,-500.0,0.00024979,2]
[381040312,1755969032933,-500.0,0.00024979,2]
[381040313,1755969032942,-500.0,0.00024979,2]
[381040314,1755969032951,-500.0,0.00024979,2]
[381040315,1755969032959,-500.0,0.00024979,2]
[381040316,1755969032968,-500.0,0.00024979,2]
[381040317,1755969032977,-500.0,0.00024979,2]
[381040318,1755969032986,-500.0,0.00024979,2]
[381040319,1755969032995,-500.0,0.00024979,2]
[381040320,1755969033004,-500.0,0.00024979,2]
[381040321,1755969033014,-500.0,0.00024979,2]
[381040322,1755969033023,-500.0,0.00024979,2]
[381040323,1755969033033,-500.0,0.00024979,2]
[381040324,1755969033043,-500.0,0.00024979,2]
[381040325,1755969033053,-500.0,0.00024979,2]
[381040326,1755969033063,-500.0,0.00024979,2]
[381040327,1755969033072,-500.0,0.00024979,2]
[381040328,1755969033081,-500.0,0.00024979,2]
[381040329,1755969033091,-500.0,0.00024979,2]
[381040331,1755969033102,-500.0,0.00024979,2]
[381040333,1755969033111,-500.0,0.00024979,2]
[381040334,1755969033120,-500.0,0.00024979,2]
[381040335,1755969033130,-500.0,0.00024979,2]
[381040336,1755969033140,-500.0,0.00024979,2]
[381040337,1755969033150,-500.0,0.00024979,2]
[381040338,1755969033159,-500.0,0.00024979,2]
[381040339,1755969033169,-500.0,0.00024979,2]
[381040340,1755969033179,-626.57390922,0.00024979,2]
[381040341,1755969033189,-500.0,0.00024979,2]
[381040342,1755969033198,-500.0,0.00024979,2]
[381040343,1755969033208,-500.0,0.00024979,2]
[381040344,1755969033217,-500.0,0.00024979,2]
[381040345,1755969033226,-500.0,0.00024979,2]
[381040346,1755969033242,-500.0,0.00024979,2]
[381040347,1755969033253,-500.0,0.00024979,2]
[381040348,1755969033262,-500.0,0.00024979,2]
[381040349,1755969033271,-500.0,0.00024979,2]
[381040350,1755969033282,-500.0,0.00024979,2]
[381040351,1755969033298,-500.0,0.00024979,2]
[381040352,1755969033311,-190.87437696,0.00024979,2]
[381040353,1755969033323,-384.25035207,0.00024979,2]
[381040354,1755969033332,-500.0,0.00024979,2]
[381040355,1755969033341,-594.94157415,0.00024979,2]
[381040356,1755969033351,-500.0,0.00024979,2]
[381040357,1755969033360,-500.0,0.00024979,2]
[381040358,1755969033369,-500.0,0.00024979,2]
[381040359,1755969033379,-500.0,0.00024979,2]
[381040360,1755969033388,-500.0,0.00024979,2]
[381040361,1755969033399,-500.0,0.00024979,2]
[381040362,1755969033408,-500.0,0.00024979,2]
[381040363,1755969033418,-500.0,0.00024979,2]
[381040364,1755969033427,-500.0,0.00024979,2]
[381040365,1755969033437,-500.0,0.00024979,2]
[381040366,1755969033447,-500.0,0.00024979,2]
[381040367,1755969033457,-500.0,0.00024979,2]
[381040368,1755969033466,-500.0,0.00024979,2]
[381040369,1755969033476,-500.0,0.00024979,2]
[381040370,1755969033486,-500.0,0.00024979,2]
[381040371,1755969033495,-500.0,0.00024979,2]
[381040372,1755969033505,-513.72766791,0.00024979,2]
[381040373,1755969033516,-500.0,0.00024979,2]
[381040374,1755969033526,-413.83242858,0.00024979,2]
[381040375,1755969033540,-86.16757142,0.00024979,2]
[381040376,1755969033549,-500.0,0.00024979,2]
[381040377,1755969033559,-500.0,0.00024979,2]
[381040378,1755969033569,-500.0,0.00024979,2]
[381040379,1755969033580,-500.0,0.00024979,2]
[381040380,1755969033590,-500.0,0.00024979,2]
[381040381,1755969033600,-500.0,0.00024979,2]
[381040382,1755969033611,-500.0,0.00024979,2]
[381040383,1755969033621,-500.0,0.00024979,2]
[381040384,1755969033631,-500.0,0.00024979,2]
[381040385,1755969033641,-500.0,0.00024979,2]
[381040386,1755969033653,-500.0,0.00024979,2]
[381040387,1755969033663,-500.0,0.00024979,2]
[381040388,1755969033672,-500.0,0.00024979,2]
[381040389,1755969033681,-163.83923219,0.00024979,2]
[381040390,1755969033690,-500.0,0.00024979,2]
[381040391,1755969033699,-500.0,0.00024979,2]
[381040392,1755969033708,-500.0,0.00024979,2]
[381040393,1755969033717,-500.0,0.00024979,2]
[381040394,1755969033727,-255.739437,0.00024979,2]
[381040395,1755969033736,-500.0,0.00024979,2]
[381040396,1755969033745,-3505.90883767,0.00024979,2]
[381040397,1755969033759,-722.98,0.00024979,2]
[381040398,1755969033778,-1068.63348662,0.00024979,2]
[381040399,1755969033789,-28437.50000002,0.00024979,2]
[381040400,1755969033800,-282.73790491,0.00024979,2]
[381040677,1755969038442,-2093.62556752,0.00024979,2]
[381040678,1755969038495,-13888.61420326,0.00024979,2]
[381040679,1755969038505,-1152.29,0.0002498,3]
[381040680,1755969038514,-576.15,0.0002498,3]
[381040681,1755969038524,-288.07,0.0002498,3]
[381040682,1755969038534,-864.26,0.0002498,3]
[381040683,1755969038543,-1109.5297919,0.0002498,2]
[381040684,1755969038555,-25712.73214357,0.0002498,2]
[381040685,1755969038565,-5985.07928681,0.0002498,2]
[381040686,1755969038576,-481.91910195,0.0002498,2]
[381040719,1755969042734,-18468.20013804,0.0002498,2]
[381040720,1755969042752,-3181.61952087,0.0002498,2]
[381040721,1755969042899,-16822.97697393,0.0002498,2]
[381040722,1755969042918,-13701.80903047,0.0002498,2]
[381040723,1755969042935,-19904.09548348,0.0002498,2]
[381040724,1755969042953,-5085.28764001,0.0002498,2]
[381040725,1755969042971,-92286.59336897,0.0002498,2]
[381040726,1755969042985,-1388.35,0.00024989,2]
[381040727,1755969043001,-100000.0,0.0002499,2]
[381040728,1755969043016,-233.8,0.00025,7]
[381040729,1755969043032,-625.98097312,0.00025071,2]
[381040730,1755969043047,-354.37082785,0.0002508,2]
[381040733,1755969043172,-151.0,0.0002508,2]
[381040736,1755969043189,-101369.92124,0.00025153,2]
[381040737,1755969043199,-500.0,0.00025163,3]
[381040738,1755969043208,-625.98097312,0.00025166,2]
[381040739,1755969043217,-362.13070189,0.00025173,2]
[381040740,1755969043226,-435.21755169,0.00025173,2]
[381040741,1755969043235,-500.0,0.00025173,2]
[381040742,1755969043244,-500.0,0.00025173,2]
[381040743,1755969043254,-200.0,0.00025173,2]
[381040744,1755969043265,-500.0,0.00025173,2]
[381040745,1755969043273,-516.62234661,0.00025173,2]
[381040746,1755969043282,-500.0,0.00025173,2]
[381040747,1755969043291,-500.0,0.00025173,2]
[381040748,1755969043302,-500.0,0.00025173,2]
[381040749,1755969043311,-29006.10749398,0.00025205,2]
[381040750,1755969043320,-500.0,0.00025253,2]
[381040751,1755969043332,-151.0,0.00025261,2]
[381040752,1755969043341,-191.0,0.00025261,2]
[381040753,1755969043351,-625.98097312,0.00025261,2]
[381040754,1755969043360,-277.94,0.00025262,2]
[381040755,1755969043369,-605.76764902,0.00025273,2]
[381040756,1755969043378,-185.94231455,0.00025273,2]
[381040757,1755969043388,-500.0,0.00025273,2]
[381040758,1755969043397,-5161.33,0.000253,7]
[381040759,1755969043408,-1990.52,0.000253,7]
[381040760,1755969043418,-177.928742,0.00025315,2]
[381040761,1755969043427,-177.928742,0.00025315,25]
[381040762,1755969043436,-177.928742,0.00025315,49]
[381040763,1755969043446,-177.928742,0.00025315,72]
[381040764,1755969043455,-177.928742,0.00025315,96]
[381040765,1755969043464,-101369.92124,0.00025363,2]
[381040766,1755969043473,-469.675,0.00025372,10]
[381040767,1755969043483,-506.94996725,0.00025373,2]
[381040768,1755969043492,-500.0,0.00025373,2]
[381040769,1755969043501,-500.0,0.00025373,2]
[381040770,1755969043511,-500.0,0.00025373,2]
[381040771,1755969043521,-633.86486829,0.00025373,2]
[381040772,1755969043531,-502.38628705,0.00025373,2]
[381040773,1755969043541,-500.0,0.00025373,2]
[381040774,1755969043550,-500.0,0.00025373,2]
[381040775,1755969043559,-500.0,0.00025373,2]
[381040776,1755969043568,-500.0,0.00025373,2]
[381040777,1755969043578,-500.0,0.00025373,2]
[381040778,1755969043587,-500.0,0.00025373,2]
[381040779,1755969043596,-500.0,0.00025373,2]
[381040780,1755969043606,-500.0,0.00025373,2]
[381040781,1755969043615,-501.47743025,0.00025373,2]
[381040782,1755969043625,-500.0,0.00025373,2]
[381040783,1755969043634,-500.0,0.00025373,2]
[381040784,1755969043647,-162.00307087,0.00025373,2]
[381040785,1755969043656,-500.0,0.00025373,2]
[381040786,1755969043665,-500.0,0.00025373,2]
[381040787,1755969043675,-500.0,0.00025373,2]
[381040788,1755969043684,-500.0,0.00025373,2]
[381040789,1755969043693,-500.0,0.00025373,2]
[381040790,1755969043703,-502.46079315,0.00025373,2]
[381040791,1755969043712,-500.0,0.00025373,2]
[381040793,1755969043721,-500.0,0.00025373,2]
[381040794,1755969043730,-500.0,0.00025373,2]
[381040796,1755969043740,-500.0,0.00025373,2]
[381040798,1755969043750,-500.0,0.00025373,2]
[381040800,1755969043761,-606.74996955,0.00025373,2]
[381040802,1755969043771,-500.0,0.00025373,2]
[381040803,1755969043780,-500.0,0.00025373,2]
[381040804,1755969043789,-500.0,0.00025373,2]
[381040805,1755969043798,-500.0,0.00025373,2]
[381040806,1755969043807,-500.0,0.00025373,2]
[381040807,1755969043817,-500.0,0.00025373,2]
[381040808,1755969043828,-500.0,0.00025373,2]
[381040809,1755969043837,-500.0,0.00025373,2]
[381040810,1755969043846,-500.0,0.00025373,2]
[381040811,1755969043855,-500.0,0.00025373,2]
[381040812,1755969043864,-500.0,0.00025373,2]
[381040813,1755969043873,-500.0,0.00025373,2]
[381040814,1755969043882,-160.0,0.00025376,2]
[381040815,1755969043893,-160.0,0.00025376,2]
[381040816,1755969043903,-22414.34,0.000254,2]
[381040817,1755969043912,-160.0,0.000254,2]
[381040818,1755969043922,-500.0,0.00025437,4]
[381040819,1755969043931,-500.0,0.00025527,2]
[381040820,1755969043940,-2084.3857973,0.00025584,2]
[381040821,1755969043950,-500.0,0.00025711,5]
[381040822,1755969043959,-1000.0,0.00025721,2]
[381040823,1755969043968,-1000.0,0.00025721,2]
[381040824,1755969043977,-1000.0,0.00025721,2]
[381040825,1755969043986,-1000.0,0.00025721,2]
[381040826,1755969043995,-1000.0,0.00025721,2]
[381040827,1755969044004,-101369.92124,0.00025742,2]
[381040828,1755969044014,-151.0,0.00025742,7]
[381040829,1755969044023,-151.0,0.00025742,7]
[381040830,1755969044032,-151.0,0.00025742,7]
[381040831,1755969044045,-151.0,0.00025742,7]
[381040832,1755969044055,-151.0,0.00025742,7]
[381040833,1755969044064,-461.891169,0.00025742,7]
[381040834,1755969044079,-461.891169,0.00025742,7]
[381040835,1755969044092,-461.891169,0.00025742,7]
[381040836,1755969044101,-151.0,0.00025742,7]
[381040837,1755969044110,-461.891169,0.00025742,7]
[381040838,1755969044119,-151.0,0.00025742,7]
[381040839,1755969044129,-160.894939,0.00025742,7]
[381040840,1755969044138,-174.987191,0.00025742,7]
[381040841,1755969044146,-160.894939,0.00025742,7]
[381040842,1755969044155,-174.987191,0.00025742,7]
[381040843,1755969044163,-160.894939,0.00025742,7]
[381040844,1755969044171,-174.987191,0.00025742,7]
[381040845,1755969044180,-160.894939,0.00025742,7]
[381040846,1755969044189,-174.987191,0.00025742,7]
[381040847,1755969044198,-151.0,0.00025742,7]
[381040848,1755969044207,-151.0,0.00025742,7]
[381040849,1755969044216,-151.0,0.00025742,7]
[381040850,1755969044225,-151.0,0.00025742,7]
[381040851,1755969044234,-543.604818,0.00025742,7]
[381040852,1755969044243,-151.0,0.00025742,7]
[381040853,1755969044253,-543.604818,0.00025742,7]
[381040854,1755969044264,-151.0,0.00025742,7]
[381040855,1755969044273,-543.604818,0.00025742,7]
[381040856,1755969044283,-543.604818,0.00025742,7]
[381040857,1755969044292,-151.635013,0.00025742,7]
[381040858,1755969044301,-151.0,0.00025742,7]
[381040859,1755969044310,-1818.473758,0.00025742,7]
[381040860,1755969044319,-151.0,0.00025742,7]
[381040861,1755969044328,-1818.473758,0.00025742,7]
[381040862,1755969044337,-1818.473758,0.00025742,7]
[381040863,1755969044346,-154.806484,0.00025762,7]
[381040864,1755969044356,-154.806484,0.00025762,7]
[381040865,1755969044364,-154.806484,0.00025762,7]
[381040866,1755969044372,-154.806484,0.00025762,7]
[381040867,1755969044380,-151.0,0.00025762,7]
[381040868,1755969044388,-151.0,0.00025762,7]
[381040869,1755969044397,-151.0,0.00025762,7]
[381040870,1755969044406,-151.0,0.00025762,7]
[381040871,1755969044416,-151.0,0.00025762,7]
[381040872,1755969044425,-151.0,0.00025762,7]
[381040873,1755969044434,-151.0,0.00025762,7]
[381040874,1755969044444,-151.0,0.00025762,7]
[381040875,1755969044453,-251.316064,0.00025762,7]
[381040876,1755969044462,-251.316064,0.00025762,7]
[381040877,1755969044472,-251.316064,0.00025762,7]
[381040878,1755969044481,-251.316064,0.00025762,7]
[381040879,1755969044490,-151.0,0.00025762,7]
[381040880,1755969044499,-151.0,0.00025762,7]
[381040881,1755969044507,-151.0,0.00025762,7]
[381040882,1755969044515,-151.0,0.00025762,7]
[381040883,1755969044524,-151.0,0.00025762,7]
[381040884,1755969044535,-151.0,0.00025762,7]
[381040885,1755969044543,-151.0,0.00025762,7]
[381040886,1755969044553,-152.669651,0.00025762,7]
[381040887,1755969044561,-151.0,0.00025762,7]
[381040888,1755969044659,-570.509475,0.00025762,7]
[381040889,1755969044668,-151.0,0.00025762,7]
[381040890,1755969044677,-570.509475,0.00025762,7]
[381040891,1755969044687,-280.785774,0.00025762,7]
[381040892,1755969044696,-570.509475,0.00025762,7]
[381040893,1755969044705,-280.785774,0.00025762,7]
[381040894,1755969044715,-570.509475,0.00025762,7]
[381040895,1755969044724,-280.785774,0.00025762,7]
[381040896,1755969044733,-280.785774,0.00025762,7]
[381040897,1755969044742,-151.0,0.00025762,7]
[381040898,1755969044751,-395.617028,0.00025762,7]
[381040899,1755969044760,-151.0,0.00025762,7]
[381040900,1755969044770,-209.527777,0.00025762,7]
[381040901,1755969044780,-151.0,0.00025762,7]
[381040902,1755969044790,-151.0,0.00025762,7]
[381040903,1755969044801,-151.0,0.00025762,7]
[381040904,1755969044810,-151.0,0.00025762,7]
[381040905,1755969044819,-218.551576,0.00025762,7]
[381040906,1755969044828,-395.617028,0.00025762,7]
[381040907,1755969044838,-151.0,0.00025762,7]
[381040908,1755969044847,-218.551576,0.00025762,7]
[381040909,1755969044856,-151.0,0.00025762,7]
[381040910,1755969044865,-395.617028,0.00025762,7]
[381040911,1755969044875,-218.551576,0.00025762,7]
[381040912,1755969044885,-395.617028,0.00025762,7]
[381040913,1755969044894,-218.551576,0.00025762,7]
[381040914,1755969044903,-217.0334113,0.00025762,7]
[381040915,1755969044912,-255.44274,0.00025762,7]
[381040916,1755969044922,-255.44274,0.00025762,7]
[381040917,1755969044931,-583.751386,0.00025762,7]
[381040918,1755969044940,-255.44274,0.00025762,7]
[381040919,1755969044950,-583.751386,0.00025762,7]
[381040920,1755969044960,-255.44274,0.00025762,7]
[381040921,1755969044969,-583.751386,0.00025762,7]
[381040922,1755969044979,-151.0,0.00025762,7]
[381040923,1755969044988,-151.0,0.00025762,7]
[381040924,1755969044997,-151.0,0.00025762,7]
[381040925,1755969045006,-151.0,0.00025762,7]
[381040926,1755969045015,-376.14580871,0.00025762,7]
[381040927,1755969045025,-2709.765985,0.00025762,7]
[381040928,1755969045034,-151.0,0.00025762,7]
[381040929,1755969045043,-2709.765985,0.00025762,7]
[381040930,1755969045052,-2709.765985,0.00025762,7]
[381040931,1755969045061,-2709.765985,0.00025762,7]
[381040932,1755969045070,-151.0,0.00025762,7]
[381040933,1755969045079,-591.440606,0.00025762,7]
[381040934,1755969045089,-591.440606,0.00025762,7]
[381040935,1755969045099,-591.440606,0.00025762,7]
[381040936,1755969045110,-591.440606,0.00025762,7]
[381040937,1755969045120,-394.286893,0.00025762,7]
[381040938,1755969045130,-394.286893,0.00025762,7]
[381040939,1755969045139,-232.37252479,0.00025762,7]
[381040940,1755969045150,-844.50316758,0.00025762,7]
[381040941,1755969045159,-394.286893,0.00025762,7]
[381040942,1755969045169,-394.286893,0.00025762,7]
[381040943,1755969045178,-151.0,0.00025762,7]
[381040944,1755969045187,-179.779616,0.00025762,7]
[381040945,1755969045197,-215.94678008,0.00025762,7]
[381040946,1755969045207,-160.0,0.00025762,7]
[381040947,1755969045227,-160.0,0.00025762,7]
[381040948,1755969045245,-160.0,0.00025762,7]
[381040949,1755969045257,-198605.8074688,0.00025762,2]
[381040950,1755969045267,-500.0,0.00025773,2]
[381040951,1755969045277,-500.0,0.00025773,2]
[381040952,1755969045286,-500.0,0.00025773,2]
[381040953,1755969045296,-500.0,0.00025773,2]
[381040954,1755969045306,-500.74387212,0.00025773,2]
[381040955,1755969045315,-507.2697404,0.00025773,2]
[381040956,1755969045325,-500.0,0.00025773,2]
[381040957,1755969045335,-500.0,0.00025773,2]
[381040958,1755969045345,-500.0,0.00025773,2]
[381040959,1755969045354,-500.0,0.00025773,2]
[381040960,1755969045363,-500.0,0.00025773,2]
[381040961,1755969045372,-1001.7453302,0.00025773,2]
[381040962,1755969045381,-150.0,0.00025773,2]
[381040963,1755969045391,-283.352461,0.00025773,7]
[381040964,1755969045401,-151.0,0.00025773,7]
[381040965,1755969045410,-283.352461,0.00025773,7]
[381040966,1755969045420,-152.8467,0.00025773,7]
[381040967,1755969045429,-283.352461,0.00025773,7]
[381040968,1755969045439,-283.352461,0.00025773,7]
[381040969,1755969045449,-151.0,0.00025773,7]
[381040970,1755969045458,-151.0,0.00025773,7]
[381040971,1755969045467,-151.0,0.00025773,7]
[381040972,1755969045477,-151.0,0.00025773,7]
[381040973,1755969045487,-151.0,0.00025773,7]
[381040974,1755969045496,-628.606399,0.00025773,7]
[381040975,1755969045505,-151.0,0.00025773,7]
[381040976,1755969045515,-628.606399,0.00025773,7]
[381040977,1755969045524,-628.606399,0.00025773,7]
[381040978,1755969045533,-151.0,0.00025773,7]
[381040979,1755969045543,-628.606399,0.00025773,7]
[381040980,1755969045552,-151.0,0.00025773,7]
[381040981,1755969045561,-151.0,0.00025773,7]
[381040982,1755969045572,-151.0,0.00025773,7]
[381040983,1755969045581,-151.0,0.00025773,7]
[381040984,1755969045591,-151.0,0.00025773,7]
[381040985,1755969045600,-215.94678008,0.00025773,7]
[381040986,1755969045609,-151.0,0.00025773,7]
[381040987,1755969045618,-151.231728,0.00025773,7]
[381040988,1755969045628,-151.0,0.00025773,7]
[381040989,1755969045637,-151.0,0.00025773,7]
[381040990,1755969045646,-151.0,0.00025773,7]
[381040991,1755969045655,-461.891169,0.00025773,7]
[381040992,1755969045664,-461.891169,0.00025773,7]
[381040993,1755969045673,-461.891169,0.00025773,7]
[381040994,1755969045683,-151.0,0.00025773,7]
[381040995,1755969045692,-461.891169,0.00025773,7]
[381040996,1755969045701,-267.636651,0.00025773,7]
[381040997,1755969045710,-160.894939,0.00025773,7]
[381040998,1755969045719,-174.987191,0.00025773,7]
[381040999,1755969045729,-160.894939,0.00025773,7]
[381041000,1755969045738,-174.987191,0.00025773,7]
[381041001,1755969045747,-160.894939,0.00025773,7]
[381041002,1755969045757,-174.987191,0.00025773,7]
[381041003,1755969045766,-160.894939,0.00025773,7]
[381041004,1755969045775,-174.987191,0.00025773,7]
[381041005,1755969045784,-151.0,0.00025773,7]
[381041006,1755969045793,-151.0,0.00025773,7]
[381041007,1755969045804,-151.0,0.00025773,7]
[381041008,1755969045813,-151.0,0.00025773,7]
[381041009,1755969045822,-543.604818,0.00025773,7]
[381041010,1755969045832,-151.0,0.00025773,7]
[381041011,1755969045844,-543.604818,0.00025773,7]
[381041012,1755969045853,-151.741426,0.00025773,7]
[381041013,1755969045862,-543.604818,0.00025773,7]
[381041014,1755969045872,-543.604818,0.00025773,7]
[381041015,1755969045882,-151.0,0.00025773,7]
[381041016,1755969045892,-1818.473758,0.00025773,7]
[381041017,1755969045903,-1818.473758,0.00025773,7]
[381041018,1755969045914,-1818.473758,0.00025773,7]
[381041019,1755969045923,-500.0,0.00025801,2]
[381041020,1755969045933,-150.35,0.00025897,7]
[381041021,1755969045942,-150.3,0.00025897,7]
[381041022,1755969045951,-150.3,0.00025902,7]
[381041023,1755969045960,-150.33,0.00025915,7]
[381041024,1755969045970,-1000.0,0.00025921,2]
[381041025,1755969046059,-1000.0,0.00025921,2]
[381041026,1755969046072,-1000.0,0.00025921,2]
[381041027,1755969046081,-1000.0,0.00025921,2]
[381041028,1755969046091,-1000.0,0.00025921,2]
[381041029,1755969046100,-1007.11629469,0.00025921,2]
[381041030,1755969046109,-992.12546401,0.00025921,2]
[381041031,1755969046119,-1000.0,0.00025921,2]
[381041033,1755969046128,-1000.0,0.00025921,2]
[381041034,1755969046137,-500.0,0.00025921,2]
[381041035,1755969046146,-1000.0,0.00025921,2]
[381041036,1755969046156,-1000.0,0.00025921,2]
[381041037,1755969046166,-1000.0,0.00025921,2]
[381041038,1755969046175,-1000.0,0.00025921,2]
[381041039,1755969046184,-1000.0,0.00025921,2]
[381041040,1755969046194,-1000.0,0.00025921,2]
[381041041,1755969046203,-1000.0,0.00025921,2]
[381041042,1755969046212,-1000.0,0.00025921,2]
[381041043,1755969046222,-1000.79405762,0.00025921,2]
[381041044,1755969046231,-1000.0,0.00025921,2]
[381041045,1755969046240,-1000.0,0.00025921,2]
[381041046,1755969046249,-1000.0,0.00025921,2]
[381041047,1755969046259,-1000.0,0.00025921,2]
[381041048,1755969046271,-1000.0,0.00025921,2]
[381041049,1755969046280,-1000.0,0.00025921,2]
[381041050,1755969046290,-1000.0,0.00025921,2]